Cogmind - Beta 14 @@@ ROGUE MODE // 2024.08.08 @ 18:28:59 Player: Sgt. SmokeWeed Result: Self-destructed Performance ------------- Evolutions (1) 500 Regions Visited (4) 800 Robots Destroyed (18) 90 Value Destroyed (477) 477 Prototype IDs (1) 20 Alien Tech Used (0) 0 Bonus (0) 0 TOTAL SCORE: 1887 Bonus ------- None Cogmind --------- Core Integrity 299/400 Matter 223/300 Energy 273/280 System Corruption 0% Temperature Cool (0) Movement Treading (160) Location -9/Storage Parts ------- > --- POWER (1) -------- Heavy Ion Engine > --- PROPULSION (2) --- Light Treads Light Treads > --- UTILITY (4) ------ Heat Sink Hacking Suite > --- WEAPON (2) ------- Heavy Assault Rifle Heavy Assault Rifle > --- INVENTORY (5) ---- Heavy Ion Engine Heavy Assault Rifle Peak State ------------ > --- POWER ------------ Heavy Ion Engine > --- PROPULSION ------- Light Treads Light Treads > --- UTILITY ---------- Heat Sink Hacking Suite > --- WEAPON ----------- Heavy Assault Rifle Heavy Assault Rifle > --- INVENTORY -------- Heavy Ion Engine Heavy Assault Rifle Heavy Assault Rifle [Rating: 13] Favorites ----------- Power Heavy Ion Engine Engine Heavy Ion Engine Propulsion Light Treads Treads Light Treads Utility Heat Sink Device Heat Sink Hackware Hacking Suite Weapon Heavy Assault Rifle Energy Gun Small Laser Ballistic Gun Heavy Assault Rifle Build | -11 -10 -10 -9 -9 ------- Run | Yrd Mat Min Mat Sto Slots Evolved 2 | . . . 2 . Power . | . . . . . Propulsion . | . . . . . Utility 2 | . . . 2 . Weapon . | . . . . . Parts Attached 13 | 6 1 . 4 2 Power 2 | 1 . . 1 . Engine 2 | 1 . . 1 . Core . | . . . . . Reactor . | . . . . . Propulsion 3 | 2 . . 1 . Treads 3 | 2 . . 1 . Leg . | . . . . . Wheel . | . . . . . Hover . | . . . . . Flight . | . . . . . Utility 2 | . 1 . . 1 Device 1 | . 1 . . . Storage . | . . . . . Processor . | . . . . . Hackware 1 | . . . . 1 Protection . | . . . . . Artifact . | . . . . . Weapon 6 | 3 . . 2 1 Energy Gun 2 | 2 . . . . Energy Cannon . | . . . . . Ballistic Gun 4 | 1 . . 2 1 Ballistic Cannon . | . . . . . Launcher . | . . . . . Special Weapon . | . . . . . Impact Weapon . | . . . . . Slashing Weapon . | . . . . . Piercing Weapon . | . . . . . Special Melee Weapon . | . . . . . Unidentified Prototypes 1 | . . . 1 . Parts Lost 1 | . . . . 1 Power . | . . . . . Propulsion . | . . . . . Utility . | . . . . . Weapon 1 | . . . . 1 Highest Loss Streak 1 | . . . . 1 To Critical Strikes . | . . . . . Average Slot Usage (%) 72 | . 74 85 66 73 Engine 11 | . 14 14 11 11 Treads 23 | . 28 28 22 22 Device 10 | . 3 14 11 11 Hackware 1 | . . . . 8 Energy Gun 4 | . 14 14 . . Ballistic Gun 19 | . 14 14 21 21 Peak Build Rating 13 | 5 6 6 10 13 Average Rating 8 | 3 5 6 9 12 On Entrance 5 | . 5 6 6 10 Naked Turns . | . . . . . Heaviest Build 15 | 6 7 7 15 15 Greatest Support 40 | 40 40 40 40 40 Greatest Overweight (x) . | . . . . . Average Overweight (x) . | . . . . . Largest Inventory Capacity 5 | 5 5 5 5 5 Average Capacity 5 | 5 5 5 5 5 Most Carried 4 | . . . 4 3 Average Carried 1 | . . . 2 2 Final Capacity 5 | 5 5 5 5 5 Final Carried 3 | . . . 3 2 Class Distribution -------------------- 100% | Mutant Dominant Class ---------------- Mutant | -10/Materials Mutant | -10/Mines Mutant | -9/Materials Mutant | -9/Storage Resources | -11 -10 -10 -9 -9 ----------- Run | Yrd Mat Min Mat Sto Matter Collected 563 | 192 74 19 204 74 Remotely . | . . . . . Salvage Created 648 | . 74 . 330 244 Parts 41 | . 6 . 18 17 Haulers Intercepted . | . . . . . Recyclers Shooed . | . . . . . Parts Field Recycled . | . . . . . Retrieved Matter . | . . . . . Parts Self-Destructed . | . . . . . Prevented . | . . . . . Kills | -11 -10 -10 -9 -9 ------- Run | Yrd Mat Min Mat Sto Combat Hostiles Destroyed 14 | . 2 . 8 4 Guns 14 | . 2 . 8 4 Classes Destroyed 6 | . 1 . 4 1 Recycler 1 | . . . 1 . Operator 1 | . . . . 1 Watcher 2 | . . . 1 1 Swarmer 4 | . . . 4 . Grunt 7 | . 2 . 3 2 Sentry 3 | . . . 1 2 Best Kill Streak 4 | . 2 . 4 3 Combat Bots Only 4 | . 2 . 4 3 Max Kills in Single Turn 1 | . 1 . 1 1 Gunslinging . | . . . . . Exploded . | . . . . . Melee . | . . . . . Uniques/NPCs Destroyed . | . . . . . Combat | -11 -10 -10 -9 -9 -------- Run | Yrd Mat Min Mat Sto Hostile Shots Fired 80 | . 4 . 41 35 Missed 20 | . 1 . 12 7 Damage Taken 678 | . 35 . 279 364 Core 101 | . . . 62 39 Absorbed by Shields . | . . . . . Core Remaining (%) 100 | 100 . 100 . . Volleys Fired 58 | . 5 . 29 24 Largest 2 | . 2 . 2 2 Hottest 60 | . 60 . 46 46 Shots Fired 112 | . 10 . 58 44 Gun 112 | . 10 . 58 44 Cannon . | . . . . . Launcher . | . . . . . Special . | . . . . . Kinetic 107 | . 5 . 58 44 Thermal 5 | . 5 . . . Explosive . | . . . . . Electromagnetic . | . . . . . Robot Hit Streak 8 | . 3 . 5 8 Robot Miss Streak 4 | . 3 . 4 2 Penetration Max . | . . . . . Secondary Targets 1 | . . . 1 . Max Gunslinging Chain 1 | . . . 1 . Shots Hit Robots 66 | . 6 . 34 26 Core Hits 27 | . 4 . 14 9 Critical Kills . | . . . . . Critical Parts Destroyed 2 | . . . 2 . Critical Strikes 3 | . . . 2 1 Destroy 3 | . . . 2 1 Melee Attacks . | . . . . . Impact . | . . . . . Slashing . | . . . . . Piercing . | . . . . . Sneak Attacks . | . . . . . Combat Hostiles . | . . . . . Follow-up Attacks . | . . . . . Damage Inflicted 1009 | . 72 . 553 384 Guns 1006 | . 72 . 553 381 Cannons . | . . . . . Explosions . | . . . . . Melee . | . . . . . Ramming 3 | . . . . 3 Kinetic 984 | . 50 . 553 381 Thermal 22 | . 22 . . . Explosive . | . . . . . Electromagnetic . | . . . . . Impact . | . . . . . Slashing . | . . . . . Piercing . | . . . . . Highest Corruption . | . . . . . Average Corruption . | . . . . . Corruption Purged . | . . . . . Corruption Blocked . | . . . . . Overload Shots . | . . . . . Overflow Damage . | . . . . . Projectiles . | . . . . . Explosions . | . . . . . Melee . | . . . . . Knockbacks . | . . . . . Impact . | . . . . . Kinetic . | . . . . . Secondary . | . . . . . Self-Inflicted Damage . | . . . . . Shots . | . . . . . Rammed 2 | . . . . 2 Targets Rammed 2 | . . . . 2 Kicked . | . . . . . Crushed . | . . . . . Highest Temperature 12 | . 12 . . 6 Average Temperature 7 | . 7 . . 6 Received Heat Transfer 246 | . 18 . 66 162 Siege Activations . | . . . . . Robots Corrupted . | . . . . . Combat Hostiles . | . . . . . Parts Fried . | . . . . . Impact Corruptions . | . . . . . Robots Melted . | . . . . . Combat Hostiles . | . . . . . Parts Melted . | . . . . . Heat Transferred 50 | . 50 . . . Parts Sabotaged . | . . . . . Parts Stolen . | . . . . . Parts Stripped . | . . . . . Power Chain Reactions . | . . . . . Alert | -11 -10 -10 -9 -9 ------- Run | Yrd Mat Min Mat Sto Peak Influence 262 | . 45 17 252 262 Initial 105 | . . 17 6 105 Average 86 | . 23 17 103 167 Maximum Alert Level 1 | . . . 1 1 Low Security (%) 85 | 100 100 100 87 59 Level 1 14 | . . . 12 40 Level 2 . | . . . . . Level 3 . | . . . . . Level 4 . | . . . . . Level 5 . | . . . . . High Security . | . . . . . Max Security . | . . . . . Squads Dispatched 3 | . . . 1 2 Investigation 1 | . . . 1 . Extermination . | . . . . . Reinforcement 1 | . . . . 1 Assault . | . . . . . Garrison 1 | . . . . 1 Intercept . | . . . . . Searches Triggered . | . . . . . Construction Impeded . | . . . . . Haulers Reinforced . | . . . . . Active Scanning Responses . | . . . . . Cargo Convoy Interrupts . | . . . . . Stealth | -11 -10 -10 -9 -9 --------- Run | Yrd Mat Min Mat Sto Distress Signals 2 | . . . . 2 Communications Jammed . | . . . . . Distress Signals . | . . . . . Times Spotted 24 | . 2 . 14 8 Peak Tracking Total 4 | . 2 . 3 4 Tactical Retreats 1 | . . . . 1 Traps | -11 -10 -10 -9 -9 ------- Run | Yrd Mat Min Mat Sto Traps Triggered 1 | . . . 1 . Indirectly . | . . . . . Trap Hack Attempts . | . . . . . Triggered . | . . . . . Disarmed . | . . . . . Reprogrammed . | . . . . . Reused . | . . . . . Traps Extracted . | . . . . . Installed . | . . . . . Triggered . | . . . . . Machines | -11 -10 -10 -9 -9 ---------- Run | Yrd Mat Min Mat Sto Machines Disabled 1 | . . . 1 . Max in Single Turn 1 | . . . 1 . Machines Repaired . | . . . . . Machines Dismantled . | . . . . . Machines Sabotaged . | . . . . . Overloaded Fab Kills . | . . . . . Hacking | -11 -10 -10 -9 -9 --------- Run | Yrd Mat Min Mat Sto Machines Accessed 7 | . 1 . 4 2 Terminals 7 | . 1 . 4 2 Fabricators . | . . . . . Repair Stations . | . . . . . Recycling Units . | . . . . . Scanalyzers . | . . . . . Garrison Access . | . . . . . Total Hacks 17 | . 2 . 12 3 Successful 2 | . 1 . 1 . Failed 15 | . 1 . 11 3 Catastrophic 6 | . . . 3 3 Database Lockouts . | . . . . . Manual 11 | . . . 8 3 Terminals 17 | . 2 . 12 3 Fabricators . | . . . . . Repair Stations . | . . . . . Recycling Units . | . . . . . Scanalyzers . | . . . . . Garrison Access . | . . . . . Terminal Hacks 2 | . 1 . 1 . Recall Investigation 1 | . . . 1 . Zone Layout 1 | . 1 . . . Fabricator Hacks . | . . . . . Repair Station Hacks . | . . . . . Recycling Unit Hacks . | . . . . . Scanalyzer . | . . . . . Garrison Access Hacks . | . . . . . Unauthorized Hacks . | . . . . . Terminals . | . . . . . Fabricators . | . . . . . Repair Stations . | . . . . . Recycling Units . | . . . . . Scanalyzers . | . . . . . Garrison Access . | . . . . . Data Cores Recovered . | . . . . . Used . | . . . . . Hacking Detections 7 | . 1 . 4 2 Full Trace Events 1 | . . . 1 . Feedback Events . | . . . . . Feedback Blocked . | . . . . . Robot Schematics Acquired . | . . . . . Robots Built . | . . . . . Authchips . | . . . . . Time . | . . . . . Total Robot Build Rating . | . . . . . Part Schematics Acquired . | . . . . . Parts Built . | . . . . . Authchips . | . . . . . Time . | . . . . . Total Part Build Rating . | . . . . . Parts Repaired . | . . . . . Time . | . . . . . Parts Recycled . | . . . . . Recycled Matter . | . . . . . Retrieved Matter . | . . . . . Retrieved Components . | . . . . . Parts Scanalyzed . | . . . . . Part Schematics Acquired . | . . . . . Parts Damaged . | . . . . . Bothacking | -11 -10 -10 -9 -9 ------------ Run | Yrd Mat Min Mat Sto Used RIF Installer . | . . . . . Robots Hacked . | . . . . . Non-combat . | . . . . . Combat . | . . . . . Robot Hacks Applied . | . . . . . Relay Couplers Released . | . . . . . Fabnet Peak Effective % . | . . . . . Robots Rewired . | . . . . . Allies Hacked . | . . . . . Hacks Repelled . | . . . . . Allies | -11 -10 -10 -9 -9 -------- Run | Yrd Mat Min Mat Sto Total Allies 3 | . . 3 . . Largest Group 3 | . . 3 3 . Highest-Rated Group 40 | . . 40 40 . Highest-Rated Ally 16 | . . 16 16 . Total Orders . | . . . . . Ally Attacks 13 | . . . 13 . Total Damage 144 | . . . 144 . Kills . | . . . . . Allies Corrupted . | . . . . . Allies Melted . | . . . . . Intel | -11 -10 -10 -9 -9 ------- Run | Yrd Mat Min Mat Sto Robot Analysis Total . | . . . . . Derelict Logs Recovered . | . . . . . Drone Launches . | . . . . . Drone Recoveries . | . . . . . Exploration | -11 -10 -10 -9 -9 ------------- Run | Yrd Mat Min Mat Sto Turns Passed 936 | 89 86 157 397 207 Spaces Moved 444 | 53 44 97 168 82 Core 4 | 4 . . . . Treads 440 | 49 44 97 168 82 Legs . | . . . . . Wheels . | . . . . . Hover . | . . . . . Flight . | . . . . . Fastest Speed 50 | 50 160 160 160 160 Average Speed 159 | 151 160 160 160 160 Slowest Speed 160 | 160 160 160 160 160 Overloaded Moves . | . . . . . Propulsion Burnouts . | . . . . . Robots Hopped . | . . . . . Cave-ins Triggered . | . . . . . Exploration Rate (%) 18 | 4 17 27 19 24 Regions Visited 4 Branch Regions 2 Pre-discovered Areas . | . . . . . Known Exits Taken . | . . . . . Unknown Exits Taken 4 | 1 1 1 1 . Scrap Searched 1 | . . 1 . . Spaces Dug . | . . . . . Terrain Destroyed . | . . . . . Melee . | . . . . . Projectile . | . . . . . AOE . | . . . . . Terrain Rammed . | . . . . . Walls Destroyed . | . . . . . Machines Disabled . | . . . . . Actions | -11 -10 -10 -9 -9 --------- Run | Yrd Mat Min Mat Sto Total 557 | 59 49 99 238 112 Wait 36 | . . 3 31 2 Move 440 | 52 43 96 167 82 Hop . | . . . . . Pick Up 3 | . . . 3 . Fast Attach 10 | 6 1 . 2 1 Attach 1 | . . . . 1 Detach . | . . . . . Swap 2 | . . . 2 . Drop 5 | 1 . . 4 . Fire 58 | . 5 . 29 24 Melee . | . . . . . Ram . | . . . . . Kick . | . . . . . Crush 2 | . . . . 2 Escape Stasis . | . . . . . Rewire . | . . . . . Trap . | . . . . . Miscellaneous . | . . . . . Route ------- -11/Scrapyard -10/Materials -10/Mines -9/Materials -9/Storage History --------- Turn | Location | Event 10 | -11/Scrapyard | Discovered new exit (range 16) 90 | -11/Scrapyard | Entered Materials 150 | -10/Materials | Discovered new exit (range 14) 176 | -10/Materials | Entered Mines 196 | -10/Mines | Met a Derelict bent on vengeance 295 | -10/Mines | Discovered new exit (range 15) 306 | -10/Mines | Build established: Mutant 322 | -10/Mines | Assisted by bots powering up and referring to "LRC-V3" 333 | -10/Mines | Entered Materials 333 | -9/Materials | Accompanied by 3 allies 333 | -9/Materials | Evolved 2 slots: Utility x2 475 | -9/Materials | Lost 3 allies 681 | -9/Materials | Discovered new exit (range 14) 730 | -9/Materials | Entered Storage 884 | -9/Storage | Garrison activated, responded to threat 937 | -9/Storage | Self-destructed Last Messages --------------- R-06 Scavenger collects Imp. Ion Engine. R-06 Scavenger collects Aluminum Leg. R-06 Scavenger collects Ion Engine. R-06 Scavenger collects Heat Sink. W-16 Scout sends out distress signal. Connecting with Terminal... K-01 Serf cleans the Terminal. Connecting with Terminal... W-16 Scout calls for garrison support. ALERT: Activating Garrison Access S001. K-01 Serf cleans the Terminal. W-16 Scout destroyed. R-06 Scavenger collects Lgt. Ion Engine. R-06 Scavenger collects Hover Unit. K-01 Serf collects debris. R-06 Scavenger collects Signal Interpreter. Hvy. Assault Rifle destroyed. Critical hit (Burn: +37). Y-45 Defender suffers critical hit (Destroy). Y-45 Defender destroyed. Map ----- +----------------------------------------------------+ | ??????????????????????????????????????????????? | | ??????????????????????????????????????????????? | | ??????????????????????????????????????????????? | | ??????????????????????????????????????????????? | | ??????????????????????????????????????????????? | | ??????????????????????????????????????????????? | | ??????????????????????????????????????????????? | | ??????????????????????????????????????????????? | | ??????????????????????????????????????????????? | | ??????????????????????????????????????????????? | | ??????????????????????????????????????????????? | | ??????????????????????????????????????????????? | | ????????????????????????????#####?????????????? | | ???????????????????????????? #????? ???????? | | ???????????????????????????? #????? ???????? | | ???????????????????????????? #????? ???????? | | ????????????????????????###?# #????? ???????? | | ???????????????????????? #?# #????? ???????? | | ???????????????????????? #?# #????? ???????? | | ??????????????????????? #?# #????? ???????? | | ??????????????????????? #?# #????# #??????? | | ??????????????????????? #?#!% #????# #??????? | | ??????????????????????? #?# #????# #??????? | | ??????????????????????? #?# #????# #??????? | | ?????????????????# """" #?# #????# #??????? | | ?????????????????# @ ### ##???# #??????? | | ?????????????????#+###g##### ##### ######## | | ?????????????????# T % % | | ?????????????????+ g % "" #### | | ?????????????????# = #??? | | ?????????????????# ####### ########+##??? | | ?????????????????# ^??????###+###????? "??? | | ?????????????????+ ^^??????? ??????? "R"? | | ?????????????????####?????! ???????# " " | | ???????????????????????? ????????# | | ??????????????????????? ??????????# !!! | | ???????????????????????????????????# !!! | | ???????????????????????????????????# !! | | ???????????????????????????????????############ | | | | | | | | | | | | | | | | | | | | | | | +----------------------------------------------------+ Best States ------------- Heat Dissipation 38 Energy Generation 14 Energy Capacity 280 Matter Stores 300 Matter Capacity 300 Sight Range 16 Terrain Scan Density 10 Evasion (%) 40 Recoil Reduction 2 Offensive Hacking 10 Item Schematics ----------------- None Robot Schematics ------------------ None Fabricated ------------ Nothing Alien Tech Used ----------------- None Achievements -------------- None Challenges ------------ None Game ------ Seed ReinforcedGuidedFlamer Manual? 0 Play Time 00:06:33 Cumulative 68.2 hours Start 2024.08.08 @ 18:23:41 End 2024.08.08 @ 18:28:59 Sessions 1 Manual Loads 0 Difficulty Rogue Special Mode None Game No. 162 Rogue 87 Adventurer 75 Explorer 0 Win Type - Total 0 Types 0/0/0/0/0/0/0/0/0 Lore% 37 Gallery% 41 Achievement% 34 Wizard Run 0 Options --------- Layout 0 ASCII 0 Keyboard 0 Movement Mouse Keybinds 0 Fullscreen 1 Font 24/Smallcaps Map View 76x50 Zoom Use 0% Tactical HUD 0 Map Filters NONE Filters NONE Steam 1 RUN: 2953892a-67d0-4b6d-a335-9e942c2883ee